[Event "67th Mexican-ch Open 2022"]
[Site "Chihuahua"]
[Date "2022.04.15"]
[Round "4.8"]
[White "Galaviz Medina, Sion Radamantys"]
[Black "Montes Orozco, Miguel Angel"]
[Result "1-0"]
[ECO "D18"]
[WhiteElo "2374"]
[BlackElo "1914"]
[Annotator "TA"]
[PlyCount "63"]
[EventDate "2022.04.12"]
[EventType "swiss"]
[EventCountry "MEX"]
[SourceTitle "playchess.com"]
[Source "ChessBase"]
[SourceQuality "1"]
[TimeControl "5400+30"]

{[%evp 17,63,0,8,11,6,-4,10,6,8,0,20,29,18,11,30,0,31,-19,-32,-58,-70,-58,-67,-59,24,20,68,43,156,156,141,147,156,138,106,31,240,152,162,161,146,153,417,324,322,349,688,658]} 1. d4 {[%emt 0:00:02]} d5 {[%emt 0:01:38]} 2. c4 {[%emt 0:00:03]} c6 {[%emt 0:00:04]} 3. Nc3 {[%emt 0:00:04]} Nf6 {[%emt 0:00:05]} 4. Nf3 {[%emt 0:00:46]} dxc4 {[%emt 0:00:24]} 5. a4 {[%emt 0:00:11]} Bf5 {[%emt 0:00:13]} 6. e3 {[%emt 0:22:42]} e6 {[%emt 0:00:25]} 7. Bxc4 {[%emt 0:00:04]} Bb4 {[%emt 0:00:11]} 8. O-O {[%emt 0:00:21]} O-O {[%emt 0:00:45]} 9. h3 {[%emt 0:01:33]} h6 {[%emt 1:31:15]} 10. Qe2 {[%emt 0:24:07] D18: Slav Defence: 5 a4 Bf5 6 e3.} Bh7 {[%emt 0:00:00]} 11. Bd2 {[%emt 0:05:47]} Nbd7 {[%emt 0:00:00]} 12. Rfd1 {[%emt 0:02:13] The position is equal.} Qe7 {[%emt 0:00:00]} 13. a5 {[%emt 0:08:44] [#]} b5 $146 {[%emt 0:00:00]} ({Predecessor:} 13... a6 14. Na4 Bd6 15. Nc3 e5 16. dxe5 Nxe5 17. Be1 Rad8 18. Rd4 c5 19. Rdd1 Nxc4 20. Qxc4 {½-½ (61) Opryshko,S (2208)-Timerkhanov,A (2363) Tallinn 2019}) 14. Bd3 {[%emt 0:10:36]} Bxd3 {[%emt 0:00:00]} 15. Qxd3 {[%emt 0:00:02]} a6 {[%emt 0:00:00]} 16. e4 {[%emt 0:02:13]} Rfd8 {[%emt 0:00:00]} 17. Qe2 {[%emt 0:04:38]} (17. e5 $14 Nd5 18. Rdc1) 17... e5 $11 {[%emt 0:00:00]} 18. d5 {[%emt 0:02:42]} Nc5 {[%emt 0:00:00]} 19. dxc6 {[%emt 0:09:10][%cal Oc3d5]} Nb3 {[%emt 0:00:00][%csl LRa1,LRa5]} 20. Rab1 {[%emt 0:00:03]} Rac8 {[%emt 0:00:00]} ({Black should try} 20... Nxd2 $15 21. Rxd2 Rxd2 22. Nxd2 Qe6) 21. Be3 {[%emt 0:01:01] Hoping for Rxd8+.} Rxd1+ {[%emt 0:00:00]} (21... Rxc6 $11 {should be considered.} 22. Rxd8+ Qxd8) 22. Qxd1 $14 {[%emt 0:00:16]} Bxc3 {[%emt 0:00:00]} (22... Nxa5 $14 23. Nd5 Nxd5 24. exd5 Nc4) 23. Qxb3 $16 {[%emt 0:00:04]} ({Weaker is} 23. bxc3 Nxa5 24. Ra1 Nxc6 $15) 23... Bb4 {[%emt 0:00:00]} 24. Rc1 {[%emt 0:00:17]} Nxe4 {[%emt 0:00:00] [#]} 25. Nxe5 $1 {[%emt 0:00:43][%mdl 512]} Bxa5 {[%emt 0:00:00]} (25... Bd6 26. Nd7) 26. Nd7 {[%emt 0:00:29]} (26. Qa2 $1 $16 {Nxf7 is the strong threat.} Bc7 27. Qxa6 $1) 26... Bd2 $2 {[%emt 0:00:00]} (26... Bc7 $14) 27. Bxd2 {[%emt 0:00:22]} Nxd2 {[%emt 0:00:00] [#]} 28. Qd5 {[%emt 0:00:11]} Nc4 {[%emt 0:00:00]} 29. b3 {[%emt 0:00:04] &Bianco is more active.} Ne3 {[%emt 0:00:00]} (29... Nd6 $16 {was worth a try.} 30. Qc5 Qg5 31. Qxg5 hxg5) 30. Qd2 {[%emt 0:01:38]} ({Not} 30. Qf3 Qxd7 31. fxe3 (31. cxd7 $2 {loses.} Rxc1+ 32. Kh2 Nf1+ 33. Kh1 Nd2+ 34. Kh2 Nxf3+ $19) 31... Qd6 $11) 30... Nf5 {[%emt 0:00:00] [#]} 31. Nb6 $1 {[%emt 0:00:06]} Rd8 {[%emt 0:00:00] [#]} (31... Re8 32. c7 Nd6) 32. Qxd8+ $3 {[%emt 0:00:10][%mdl 512] Weighted Error Value: White=0.15 (very precise) /Black=0.61} 1-0

[Event "67th Mexican-ch Open 2022"]
[Site "Chihuahua"]
[Date "2022.04.15"]
[Round "4.9"]
[White "Blanco Fernandez, Alvaro"]
[Black "Obregon Rivero, Juan Carlos"]
[Result "0-1"]
[ECO "B38"]
[WhiteElo "2216"]
[BlackElo "2536"]
[Annotator "TA"]
[PlyCount "102"]
[EventDate "2022.04.12"]
[EventType "swiss"]
[EventCountry "MEX"]
[SourceTitle "playchess.com"]
[Source "ChessBase"]
[SourceQuality "1"]
[TimeControl "5400+30"]

{[%evp 26,102,50,44,48,38,46,13,12,9,43,45,41,62,39,0,1,4,2,4,17,0,6,4,6,0,0,0,0,0,0,0,0,0,0,-8,-6,-8,0,0,0,0,0,0,0,0,0,0,0,0,0,-35,-35,-33,-34,-682,-568,-670,-656,-810,-810,-493,-493,-1534,-465,-1512,-1329,-1029,-759,-29969,-29964,-29972,-29973,-29972,-29972,-29981,-29982,-29984,-29983]} 1. d4 {[%emt 1:31:00]} Nf6 {[%emt 0:00:13]} 2. c4 {[%emt 0:00:00]} g6 {[%emt 0:00:53]} 3. Nc3 {[%emt 0:00:00]} Bg7 {[%emt 0:00:10]} 4. e4 {[%emt 0:00:00]} d6 {[%emt 0:00:10]} 5. Be2 {[%emt 0:00:00]} O-O {[%emt 0:00:14]} 6. Nf3 {[%emt 0:00:00]} c5 {[%emt 0:00:09]} 7. O-O {[%emt 0:00:00]} cxd4 {[%emt 0:00:04]} 8. Nxd4 {[%emt 0:00:00]} Nc6 {[%emt 0:00:03]} 9. Be3 {[%emt 0:00:00]} Bd7 {[%emt 0:01:21]} 10. f3 {[%emt 0:00:00]} Nxd4 {[%emt 0:00:13]} 11. Bxd4 {[%emt 0:00:00]} a5 {[%emt 0:00:15]} 12. Qd2 {[%emt 0:00:00]} Bc6 {[%emt 0:00:08]} 13. Rfd1 {[%emt 0:00:00]} Nd7 {[%emt 0:00:22]} 14. Be3 {[%emt 0:00:00] 14.Bf2 deserves study.} a4 {[%emt 0:00:46] B38: Sicilian: Maroczy Bind with 5...Bg7 and 7...0-0.} 15. Rab1 {[%emt 0:00:00]} Nc5 {[%emt 0:11:39]} 16. b4 {[%emt 0:00:00]} axb3 $1 {[%emt 0:01:45] The position is equal.} 17. axb3 {[%emt 0:00:00][%cal Ba2b3,Bb3b4][%mdl 32] [#]} Re8 $146 {[%emt 0:22:29]} (17... Qa5 $5 {[%cal Rg7c3]} 18. Nd5 Bxd5 $11) ({Predecessor:} 17... Qc7 18. b4 Ra3 19. bxc5 Bxc3 20. Qc1 Rfa8 21. cxd6 exd6 22. Rd3 Qa5 23. Rxd6 Qh5 {0-1 (61) Sen,S (2073)-Dargan,P (2207) Hinckley Island 2008}) 18. Bf1 {[%emt 0:00:00]} Qa5 {[%emt 0:04:56]} 19. b4 {[%emt 0:00:00]} Qa3 {[%emt 0:00:05]} 20. Nd5 {[%emt 0:00:00]} (20. Ne2 $5 {[%cal Rb4c5]} Ne6 21. Nd4 $14) 20... Bxd5 {[%emt 0:00:46]} 21. bxc5 {[%emt 0:00:00]} Bc6 {[%emt 0:00:17]} 22. cxd6 {[%emt 0:00:00]} exd6 {[%emt 0:02:55]} 23. Bd4 {[%emt 0:00:00]} Bxd4+ {[%emt 0:02:31]} 24. Qxd4 {[%emt 0:00:00]} Qc5 {[%emt 0:00:14]} 25. Kh1 {[%emt 0:00:00]} Re6 {[%emt 0:00:20]} 26. Ra1 {[%emt 0:00:00]} Rxa1 {[%emt 0:00:57]} 27. Qxa1 {[%emt 0:00:00]} g5 {[%emt 0:00:55]} 28. Qa8+ {[%emt 0:00:00]} Re8 {[%emt 0:05:18]} 29. Qa1 {[%emt 0:00:00]} g4 {[%emt 0:03:16]} 30. Qd4 {[%emt 0:00:00]} gxf3 {[%emt 0:05:09]} 31. gxf3 {[%emt 0:00:00]} Qh5 {[%emt 0:02:18]} 32. Be2 {[%emt 0:00:00]} Re6 {[%emt 0:07:21][%cal Oc6e4]} 33. Rg1+ {[%emt 0:00:00]} Kf8 $1 {[%emt 0:00:54][%cal Oc6e4]} 34. Qg7+ {[%emt 0:00:00]} Ke7 {[%emt 0:06:29][%cal Oe6e4] Strongly threatening ...Rxe4!} 35. Qg5+ {[%emt 0:00:00]} Qxg5 {[%emt 0:00:02]} 36. Rxg5 $11 {[%emt 0:00:00][%mdl 4096] Endgame KRB-KRB} h6 {[%emt 0:00:19]} 37. Rh5 {[%emt 0:00:00]} Rg6 {[%emt 0:00:34]} 38. c5 {[%emt 0:00:00]} dxc5 {[%emt 0:00:43]} 39. Rxc5 {[%emt 0:00:00]} Rg5 {[%emt 0:00:30]} 40. Rxg5 {[%emt 0:00:00][%mdl 8192] This costs White the game.} (40. Rc3 $15) 40... hxg5 $15 {[%emt 0:00:17] KB-KB} 41. Kg2 {[%emt 0:00:00]} Kf6 {[%emt 0:01:24]} 42. Bc4 {[%emt 0:00:00]} b5 {[%emt 0:00:25]} 43. Bb3 {[%emt 0:00:00] [#]} Bd7 $1 {[%emt 0:00:27]} 44. Kf2 {[%emt 0:00:00]} (44. f4 $142 gxf4 45. Kf3) 44... Be6 $19 {[%emt 0:00:25]} 45. Bc2 {[%emt 0:00:00]} (45. Bd1 $142 b4 46. Be2) 45... Ke5 {[%emt 0:01:47] ...b4 is the strong threat.} 46. Ke3 {[%emt 0:00:00]} Bc4 {[%emt 0:00:24] Threatens to win with ...b4.} 47. f4+ {[%emt 0:00:00]} gxf4+ {[%emt 0:00:04] Black mates.} 48. Kf3 {[%emt 0:00:00]} f6 {[%emt 0:01:23]} 49. h4 {[%emt 0:00:00] [#]} Bf7 $1 {[%emt 0:01:33]} 50. Kg4 {[%emt 0:00:00]} b4 {[%emt 0:00:39][%cal Bb5b4,Bb4b3][%mdl 32]} 51. h5 {[%emt 0:00:00]} b3 {[%emt 0:00:27] Weighted Error Value: White=0.75/Black=0.07 (flawless)} 0-1

[Event "67th Mexican-ch Open 2022"]
[Site "Chihuahua"]
[Date "2022.04.15"]
[Round "4.10"]
[White "Jorajuria Mendoza, Algol"]
[Black "Quesada Perez, Luis Ernesto"]
[Result "0-1"]
[ECO "C67"]
[WhiteElo "2006"]
[BlackElo "2517"]
[Annotator "TA"]
[PlyCount "86"]
[EventDate "2022.04.12"]
[EventType "swiss"]
[EventCountry "MEX"]
[SourceTitle "playchess.com"]
[Source "ChessBase"]
[SourceQuality "1"]
[TimeControl "5400+30"]

{[%evp 16,86,39,0,0,-12,10,18,8,0,-4,-9,0,0,0,-16,0,0,0,-10,-10,-11,-10,-11,-14,-25,0,0,0,0,0,-90,-83,-78,-86,-72,-89,-96,-65,-63,-64,-64,-63,-183,-184,-188,-94,-88,-90,-158,-158,-144,-131,-132,-124,-117,-118,-142,-123,-185,-196,-191,-157,-138,-91,-291,-268,-6537,-6211,-2828,-2335,-1733,-968]} 1. e4 {[%emt 0:00:02]} e5 {[%emt 0:00:39]} 2. Nf3 {[%emt 0:00:06]} Nc6 {[%emt 0:00:10]} 3. Bb5 {[%emt 0:00:06]} Nf6 {[%emt 0:00:25]} 4. O-O {[%emt 0:00:13]} Nxe4 {[%emt 0:00:08]} 5. d4 {[%emt 0:01:03]} Nd6 {[%emt 0:00:13]} 6. Bxc6 {[%emt 0:00:34]} dxc6 {[%emt 0:00:01]} 7. dxe5 {[%emt 0:00:25]} Nf5 {[%emt 0:00:01]} 8. Qxd8+ {[%emt 0:00:24]} Kxd8 {[%emt 0:00:02]} 9. h3 {[%emt 0:06:48]} Be7 {[%emt 0:03:14] 9...Bd7 is the modern continuation. C67: Ruy Lopez: Berlin Defence: 4 0-0 Nxe4.} 10. Nc3 {[%emt 0:13:50]} Nh4 {[%emt 0:09:32] Hoping for ...Nxf3+.} 11. Nxh4 {[%emt 0:10:01]} Bxh4 {[%emt 0:00:01] [#] The position is equal.} 12. g3 $146 {[%emt 0:01:41]} ({Predecessor:} 12. Be3 Ke8 13. Rad1 h5 14. Ne4 Be7 15. Rfe1 Bf5 16. Bf4 Rd8 17. Nd6+ cxd6 18. exd6 {½-½ (31) Grischuk,A (2773)-Navara,D (2699) Terme Catez 2021}) 12... Be7 {[%emt 0:00:11]} 13. g4 {[%emt 0:02:48]} h5 {[%emt 0:00:57]} 14. f3 {[%emt 0:00:08]} Be6 {[%emt 0:00:21]} 15. Be3 {[%emt 0:04:53]} b6 {[%emt 0:03:54]} 16. Ne2 {[%emt 0:07:17]} Kc8 {[%emt 0:01:37]} 17. Nf4 {[%emt 0:06:41]} Bg5 {[%emt 0:00:30]} 18. Kg2 {[%emt 0:04:30]} Bxf4 {[%emt 0:07:23]} 19. Bxf4 {[%emt 0:00:08]} a5 {[%emt 0:00:10]} 20. a4 {[%emt 0:03:29]} c5 {[%emt 0:02:09]} 21. Bg5 {[%emt 0:01:03]} Kb7 {[%emt 0:00:23]} 22. Kg3 {[%emt 0:00:40]} Rh7 {[%emt 0:00:17]} 23. f4 {[%emt 0:03:01]} (23. Rad1 $11) 23... hxg4 $17 {[%emt 0:00:30]} 24. f5 {[%emt 0:01:02]} Bd7 {[%emt 0:01:29]} ({But not} 24... Rxh3+ 25. Kxg4 Rh2 26. fxe6 fxe6 27. Kg3 Rxc2 28. Rf2 Rxf2 29. Kxf2 $14) 25. h4 {[%emt 0:00:19]} Re8 {[%emt 0:00:24]} 26. Kf4 {[%emt 0:02:03]} f6 {[%emt 0:09:52]} 27. exf6 {[%emt 0:01:00]} gxf6 {[%emt 0:00:01]} 28. Bxf6 {[%emt 0:00:01]} Rf8 {[%emt 0:00:01]} 29. Bc3 {[%emt 0:01:21]} (29. Bg5 $1 $15) 29... Rxf5+ $19 {[%emt 0:02:23]} 30. Kg3 {[%emt 0:00:05] [#]} Rxf1 {[%emt 0:00:05]} ({Better is} 30... Rhf7 $1 $19 31. Kg2 (31. Rxf5 $2 Rxf5 32. Kg2 Rf3 $19) 31... Rf3 32. Rxf3 Rxf3) 31. Rxf1 $17 {[%emt 0:00:04]} Bxa4 {[%emt 0:00:10]} 32. Kxg4 {[%emt 0:00:23]} (32. Rc1 $142) 32... Bxc2 $19 {[%emt 0:00:08][%mdl 4096] Endgame KRB-KRB} 33. Kg5 {[%emt 0:01:00]} Ka6 {[%emt 0:01:55]} 34. h5 {[%emt 0:00:12]} Kb5 {[%emt 0:01:27]} 35. h6 {[%emt 0:00:11]} Rd7 {[%emt 0:00:19]} 36. Rf4 {[%emt 0:01:15]} c4 {[%emt 0:03:37]} 37. Rh4 {[%emt 0:00:47]} (37. Kf6 $17 {is a better defense.}) 37... Rf7 {[%emt 0:54:21]} 38. Rd4 {[%emt 0:01:30]} Bb1 {[%emt 0:00:00]} 39. Rd8 {[%emt 0:01:25]} Ka4 {[%emt 0:00:00]} ({Black should play} 39... Bh7 40. Re8 Ka4) 40. Rg8 $2 {[%emt 0:00:19] This move loses the game for White.} (40. Rd1 $17 Bd3 41. Re1) 40... Kb3 {[%emt 0:00:00]} 41. Rg6 $2 {[%emt 0:00:05]} (41. Kh4) 41... Rf5+ {[%emt 0:00:00] Black is clearly winning.} 42. Kg4 {[%emt 0:00:05] [#]} Rf4+ $3 {[%emt 0:00:00][%mdl 512]} 43. Kg5 {[%emt 0:00:06] [#]} Rg4+ $3 {[%emt 0:00:00][%mdl 512] Weighted Error Value: White=0.43/Black=0.10 (very precise)} 0-1

[Event "67th Mexican-ch Open 2022"]
[Site "Chihuahua"]
[Date "2022.04.15"]
[Round "4.11"]
[White "Torres Rosas, Luis Carlos"]
[Black "Hernandez Jimenez, Alexander Andres"]
[Result "1-0"]
[ECO "D15"]
[WhiteElo "2356"]
[BlackElo "2167"]
[Annotator "TA"]
[PlyCount "57"]
[EventDate "2022.04.12"]
[EventType "swiss"]
[EventCountry "MEX"]
[SourceTitle "playchess.com"]
[Source "ChessBase"]
[SourceQuality "1"]
[TimeControl "5400+30"]

{[%evp 9,57,68,159,123,131,108,152,143,238,223,240,236,240,233,226,152,192,181,198,170,183,178,182,180,191,184,191,174,174,174,174,174,174,174,174,174,174,174,174,174,174,158,205,205,279,254,279,260,269,208]} 1. d4 {[%emt 0:00:04]} Nf6 {[%emt 0:10:15]} 2. c4 {[%emt 0:00:07]} c6 {[%emt 0:00:40]} 3. Nc3 {[%emt 0:00:18]} d5 {[%emt 0:00:13]} 4. Nf3 {[%emt 0:00:05]} Bg4 {[%emt 0:01:36]} 5. Ne5 {[%emt 0:02:05]} Bh5 {[%emt 0:00:08]} ({Black should try} 5... Be6 $14) 6. f3 {[%emt 0:08:01] aiming for g4. &Bianco is more active. D15: Slav Defence: 4 Nc3 a6 and gambit lines after 4 Nc3 dxc4.} e6 {[%emt 0:02:40]} 7. g4 {[%emt 0:00:42][%cal Bg2g4,Bg4g5][%mdl 32]} Bg6 {[%emt 0:01:06] [#]} 8. h4 $1 {[%emt 0:00:15] Black must now prevent h5. White is clearly better.} h5 {[%emt 0:02:04]} (8... h6 $16) 9. g5 {[%emt 0:00:14]} Ng8 {[%emt 0:02:13]} 10. Nxg6 {[%emt 0:16:55]} fxg6 {[%emt 0:00:09] [#]} 11. Qc2 $146 {[%emt 0:02:00]} ({Predecessor:} 11. Bh3 Qd6 12. c5 Qg3+ 13. Kf1 Kd7 14. Qb3 Qc7 15. e4 Ne7 16. exd5 cxd5 17. Nxd5 {1-0 (28) Kuljasevic,D (2413)-Bilus Gagic,A (2077) Bizovac 2004}) 11... Kf7 {[%emt 0:12:38]} 12. Be3 {[%emt 0:05:20]} Bd6 {[%emt 0:03:22]} 13. Bf2 {[%emt 0:12:40]} Ne7 {[%emt 0:02:38]} 14. Bh3 {[%emt 0:00:55]} b5 {[%emt 0:16:36]} 15. c5 {[%emt 0:04:34]} Bc7 {[%emt 0:00:26]} 16. e4 {[%emt 0:03:25]} b4 {[%emt 0:05:11]} 17. Ne2 {[%emt 0:03:33]} Re8 {[%emt 0:03:18]} 18. Qd2 {[%emt 0:05:03]} Nd7 {[%emt 0:01:04]} 19. O-O {[%emt 0:01:33]} ({Don't go for} 19. Qxb4 $2 Ba5 20. Qc3 Bxc3+ $19) 19... Qb8 {[%emt 0:03:18]} 20. Be3 {[%emt 0:01:19]} Nf8 {[%emt 0:02:50]} 21. Bf4 {[%emt 0:01:18]} a5 {[%emt 0:13:03]} 22. Bxc7 {[%emt 0:05:12]} Qxc7 {[%emt 0:00:08]} 23. Qf4+ {[%emt 0:01:39]} Qxf4 {[%emt 0:00:09]} 24. Nxf4 {[%emt 0:00:01]} Nc8 {[%emt 0:05:24]} 25. a4 {[%emt 0:05:09]} Re7 {[%emt 0:09:19]} (25... b3 $16 26. Nd3 Ne7 27. Ne5+ Kg8) 26. Rae1 $18 {[%emt 0:04:11]} Na7 {[%emt 0:00:22]} 27. Nd3 {[%emt 0:01:50] White has a decisive advantage.} Nd7 {[%emt 0:00:26]} 28. Re2 {[%emt 0:01:50]} Rae8 {[%emt 0:00:09]} 29. Rfe1 {[%emt 0:00:08] Weighted Error Value: White=0.11 (very precise) /Black=0.20 (precise)} 1-0

[Event "67th Mexican-ch Open 2022"]
[Site "Chihuahua"]
[Date "2022.04.15"]
[Round "4.12"]
[White "Garcia Guerrero, Isaac Antonio"]
[Black "Rosales Campos, Paul"]
[Result "1/2-1/2"]
[ECO "A14"]
[WhiteElo "2338"]
[BlackElo "2039"]
[Annotator "TA"]
[PlyCount "71"]
[EventDate "2022.04.12"]
[EventType "swiss"]
[EventCountry "MEX"]
[SourceTitle "playchess.com"]
[Source "ChessBase"]
[SourceQuality "1"]
[TimeControl "5400+30"]

{[%evp 16,71,14,8,18,9,15,5,30,22,50,42,42,46,79,44,57,56,51,42,46,31,35,43,33,26,48,31,37,9,16,27,33,14,14,20,15,8,17,0,0,0,0,0,0,0,0,0,0,-35,29983,-1050,14,0,0,0,1615,0]} 1. Nf3 {[%emt 0:00:04]} Nf6 {[%emt 0:01:02]} 2. c4 {[%emt 0:00:13]} e6 {[%emt 0:03:13]} 3. g3 {[%emt 0:00:14]} d5 {[%emt 0:01:31]} 4. b3 {[%emt 0:00:17]} Be7 {[%emt 0:04:20]} 5. Bg2 {[%emt 0:00:19]} O-O {[%emt 0:03:58]} 6. O-O {[%emt 0:00:10]} Nbd7 {[%emt 0:01:38]} 7. Bb2 {[%emt 0:00:57]} b6 {[%emt 0:02:22]} 8. e3 {[%emt 0:01:14]} Bb7 {[%emt 0:01:38]} 9. Nc3 {[%emt 0:00:52] 9.Nc3 scores better than 9.Qe2.} a6 {[%emt 0:07:44] A14: English Opening: 1...e6 with b3 by White.} 10. Qe2 {[%emt 0:00:55]} Re8 {[%emt 0:09:17]} 11. Rac1 {[%emt 0:02:00]} Ne4 {[%emt 0:09:59] The position is equal.} 12. Rfd1 {[%emt 0:08:17] [#]} Bf6 $146 {[%emt 0:02:26]} ({Predecessor:} 12... Nxc3 13. dxc3 Qc8 14. cxd5 Bxd5 15. c4 Bc6 16. Qc2 Nf6 17. c5 Be4 18. Qc4 b5 {1-0 (41) Miroshnichenko,E (2651)-Kulaots,K (2607) Konya 2011}) 13. d4 {[%emt 0:02:43] Strongly threatening Nxe4.} Nxc3 {[%emt 0:02:25]} 14. Bxc3 {[%emt 0:00:14]} Qe7 {[%emt 0:00:20]} 15. Ne1 {[%emt 0:07:09]} Rab8 {[%emt 0:07:58]} 16. Bb2 {[%emt 0:09:51]} c6 {[%emt 0:10:10]} 17. Nd3 {[%emt 0:04:24]} g6 {[%emt 0:02:26]} 18. h4 {[%emt 0:03:55]} a5 {[%emt 0:03:12]} 19. h5 {[%emt 0:03:26]} Bg7 {[%emt 0:04:50]} 20. Rc2 {[%emt 0:09:58]} Qg5 {[%emt 0:03:54]} 21. hxg6 {[%emt 0:13:32]} hxg6 {[%emt 0:02:37]} 22. e4 {[%emt 0:01:59]} dxe4 {[%emt 0:04:38]} 23. Bxe4 {[%emt 0:06:53]} e5 {[%emt 0:00:46]} 24. dxe5 {[%emt 0:04:35]} Nxe5 {[%emt 0:00:44]} 25. Nxe5 {[%emt 0:02:22]} Bxe5 {[%emt 0:00:19]} 26. Bc1 {[%emt 0:00:30]} Qe7 {[%emt 0:02:43]} 27. Bg2 {[%emt 0:02:08]} c5 {[%emt 0:02:34]} 28. Bb2 {[%emt 0:02:55]} Bxg2 {[%emt 0:04:21]} 29. Kxg2 {[%emt 0:00:40]} Qf6 {[%emt 0:00:19] [#] aiming for ...Bxb2.} 30. Bxe5 {[%emt 0:03:29]} Rxe5 {[%emt 0:00:04]} 31. Qg4 {[%emt 0:01:40]} Rbe8 {[%emt 0:02:32][%cal Oa5a4]} 32. Qf3 {[%emt 0:08:35]} Rb8 $2 {[%mdl 8192] [#]} 33. Qe3 $4 {[%emt 0:00:30][%mdl 8192]} Rf5 $2 {[%emt 0:01:00]} (33... Rxe3 $19 34. fxe3 Qf5) 34. Qe4 {[%emt 0:00:30] Prevents Qf3+.} Re5 {[%emt 0:00:30]} 35. Qf4 Rf5 {[%emt 0:00:30][%mdl 8192]} 36. Qe4 $2 {[%emt 0:01:00] Weighted Error Value: White=0.33/Black=0.61} (36. Qxb8+ $18 Kh7 37. Rh1+ Rh5 38. Rxh5+ gxh5 39. Qe8) 1/2-1/2

[Event "67th Mexican-ch Open 2022"]
[Site "Chihuahua"]
[Date "2022.04.15"]
[Round "4.13"]
[White "Benitez Lozano, Javier"]
[Black "Rascon Vega, Alfonso"]
[Result "1/2-1/2"]
[ECO "E97"]
[WhiteElo "2309"]
[BlackElo "2107"]
[Annotator "TA"]
[PlyCount "62"]
[EventDate "2022.04.12"]
[EventType "swiss"]
[EventCountry "MEX"]
[SourceTitle "playchess.com"]
[Source "ChessBase"]
[SourceQuality "1"]
[TimeControl "5400+30"]

{[%evp 24,62,28,27,59,26,26,25,15,6,13,10,30,21,116,0,85,78,90,83,87,88,230,222,218,224,219,226,222,203,219,223,243,130,282,0,0,-23,30,13,65]} 1. d4 {[%emt 0:00:04]} Nf6 {[%emt 0:01:33]} 2. c4 {[%emt 0:01:11]} g6 {[%emt 0:02:59]} 3. Nc3 {[%emt 0:00:14]} Bg7 {[%emt 0:00:14]} 4. e4 {[%emt 0:00:14]} d6 {[%emt 0:00:04]} 5. Nf3 {[%emt 0:00:13]} O-O {[%emt 0:00:10]} 6. Be2 {[%emt 0:00:22]} e5 {[%emt 0:00:29]} 7. O-O {[%emt 0:00:32]} Nc6 {[%emt 0:00:08]} 8. d5 {[%emt 0:01:15]} Ne7 {[%emt 0:00:09]} 9. Bg5 {[%emt 0:00:33]} h6 {[%emt 0:06:11]} 10. Bxf6 {[%emt 0:00:29]} Bxf6 {[%emt 0:00:06]} 11. b4 {[%emt 0:00:19]} Bg7 {[%emt 0:02:52]} 12. c5 {[%emt 0:00:26]} f5 {[%emt 0:00:45]} 13. Nd2 {[%emt 0:00:27]} h5 {[%emt 0:07:34] [#] E97: King's Indian: Classical Main Line (6...e5 7 0-0 Nc6): 8 Be3 and 8 d5 Ne7, not 9 Ne1.} 14. Nc4 $146 {[%emt 0:03:24]} ({Predecessor:} 14. Rc1 Bh6 15. Rc2 a6 16. a4 fxe4 17. Ndxe4 Nf5 18. Ra2 Nd4 19. Bd3 {½-½ (19) Orso,M (2302)-Mihalincic,T (2239) Hungary 2019}) 14... fxe4 {[%emt 0:02:38]} 15. cxd6 {[%emt 0:06:32]} cxd6 {[%emt 0:00:58] White has an edge.} 16. Nxe4 {[%emt 0:00:32]} Nf5 {[%emt 0:00:31]} 17. a4 {[%emt 0:04:36]} Qe7 {[%emt 0:00:30]} 18. Qd3 {[%emt 0:08:19]} Bh6 {[%emt 0:03:38]} (18... Rd8 $11) 19. b5 {[%emt 0:03:25]} (19. Nexd6 $1 $16 {[%cal Of1e1] aiming for Rfe1!} Bg7 20. Nxf5 Bxf5 21. d6 $1 {[%mdl 512]}) 19... Kg7 {[%emt 0:03:17]} (19... Rd8 $1 $11 {keeps the balance.}) 20. Rfe1 {[%emt 0:07:02] &Bianco is more active.} Bf4 {[%emt 0:07:32]} 21. Bd1 {[%emt 0:06:24]} Bd7 {[%emt 0:14:41]} 22. Qa3 {[%emt 0:07:57]} Rf6 {[%emt 0:00:18]} 23. Nxf6 $18 {[%emt 0:09:14]} Qxf6 {[%emt 0:02:11]} 24. Bc2 {[%emt 0:01:17] Hoping for Bxf5.} Rd8 {[%emt 0:04:54]} 25. Bxf5 {[%emt 0:10:06]} Bxf5 {[%emt 0:00:12]} 26. Ne3 {[%emt 0:00:53]} Be4 {[%emt 0:00:38]} 27. f3 {[%emt 0:10:21]} Rf8 {[%emt 0:02:28]} 28. Qb4 {[%emt 0:08:01]} (28. fxe4 Bxh2+ 29. Kh1 (29. Kxh2 Qh4+ 30. Kg1 Qf2+ 31. Kh2 Qh4+ 32. Kg1 Qf2+ 33. Kh2 Qh4+ $11) 29... Qh4 30. Nf5+ gxf5 $16) (28. a5 $18) 28... Qh4 $2 {[%emt 0:01:03] [#]} (28... Bd3 $16 {keeps fighting.} 29. Qc3 Qh4 30. Qxd3 Bxh2+ 31. Kf1 e4) 29. Nf1 $2 {[%emt 0:06:53]} ({Not} 29. Qxe4 $2 Bxh2+ 30. Kh1 Rf4 $19) (29. g3 $1 $18 {[%cal Rg3h4]} Bxg3 30. hxg3 Qxg3+ 31. Ng2 Bxf3 32. Ra2) 29... Bxf3 $1 $11 {[%emt 0:00:35]} 30. Qb3 {[%emt 0:00:35] [#] Prevents Be3+.} Bg4 {[%emt 0:02:35] This bishop pair is nice.} ({Don't take} 30... Bxg2 31. Kxg2 Bxh2 32. Ng3 $16) ({Black should try} 30... Bxh2+ $1 31. Nxh2 Bxg2) 31. g3 {[%emt 0:02:39]} Qh3 {[%emt 0:34:07] Weighted Error Value: White=0.34/Black=0.45} 1/2-1/2